bitfinex/quotes_BTCUSD_20241013
["timestamp","ask_amount","ask_price","bid_price","bid_amount"]
[1728859488974,1.72530573,62948.0,62947.0,1e-06]
[1728859489200,1.54167412,62948.0,62947.0,1e-06]
[1728859489448,1.12797652,62948.0,62947.0,1e-06]
[1728859489729,0.99677071,62948.0,62947.0,1e-06]
[1728859490188,0.99841071,62948.0,62947.0,1e-06]
[1728859490424,0.87961652,62948.0,62947.0,1e-06]
[1728859490657,0.78469165,62948.0,62947.0,1e-06]
[1728859490892,0.73603504,62948.0,62947.0,1e-06]
[1728859491363,0.72203504,62948.0,62947.0,1e-06]
[1728859491592,0.660501,62948.0,62947.0,1e-06]
[1728859491818,0.688501,62948.0,62947.0,1e-06]
[1728859492050,0.674501,62948.0,62947.0,1e-06]
[1728859492281,0.679501,62948.0,62947.0,0.02423282]
[1728859492753,0.679501,62948.0,62947.0,0.01266103]
[1728859492974,0.50664,62948.0,62947.0,0.01266103]
[1728859493427,0.51364,62948.0,62947.0,0.01266103]
[1728859493653,0.50864,62948.0,62947.0,0.01266103]
[1728859493879,0.660501,62948.0,62947.0,0.01266103]
[1728859494130,0.664501,62948.0,62947.0,0.01266103]
[1728859494348,0.68938635,62948.0,62947.0,0.01266103]
[1728859494579,0.52652535,62948.0,62947.0,0.01266103]
[1728859494821,0.68538635,62948.0,62947.0,0.01266103]
[1728859495062,0.68538635,62948.0,62947.0,0.01566103]
[1728859495275,0.52652535,62948.0,62947.0,0.05704575]
[1728859495501,0.52652535,62948.0,62947.0,0.21590875]
[1728859495738,0.68538635,62948.0,62947.0,0.05704575]
[1728859496090,0.52652535,62948.0,62947.0,0.21590875]
[1728859496194,0.52652535,62948.0,62947.0,0.29010875]
[1728859498268,0.52652535,62948.0,62947.0,0.64044995]
[1728859498269,0.50164,62948.0,62947.0,0.64044995]
[1728859498732,0.50164,62948.0,62947.0,0.67227995]
[1728859499231,0.50164,62948.0,62947.0,0.68444675]
[1728859499448,0.50164,62948.0,62947.0,0.68344675]
[1728859499672,0.50164,62948.0,62947.0,0.68444675]
[1728859499673,0.50264,62948.0,62947.0,0.68444675]
[1728859500157,0.50264,62948.0,62947.0,0.68544675]
[1728859500420,0.50264,62948.0,62947.0,0.63664675]
[1728859500421,0.42644,62948.0,62947.0,0.63664675]
[1728859500658,0.42744,62948.0,62947.0,0.80176394]
[1728859500893,0.42744,62948.0,62947.0,0.63564675]
[1728859501117,0.42744,62948.0,62947.0,0.63064675]
[1728859501376,0.42544,62948.0,62947.0,0.62764675]
[1728859501619,0.50164,62948.0,62947.0,0.62764675]
[1728859502108,0.50264,62948.0,62947.0,0.63564675]
[1728859502874,0.50164,62948.0,62947.0,0.62764675]
[1728859503120,0.50264,62948.0,62947.0,0.63064675]
[1728859503368,0.50364,62948.0,62947.0,0.63164675]
[1728859503668,0.50364,62948.0,62947.0,0.63064675]
[1728859503669,0.00264,62948.0,62947.0,0.63064675]
[1728859503865,0.08134,62948.0,62947.0,0.63064675]
[1728859504099,0.08134,62948.0,62947.0,0.63164675]
[1728859504100,0.08234,62948.0,62947.0,0.63164675]
[1728859505027,0.08234,62948.0,62947.0,0.79776394]
[1728859505261,0.00164,62955.0,62947.0,0.74390094]
[1728859505493,0.00164,62955.0,62954.0,0.34796319]
[1728859505724,0.00164,62955.0,62954.0,0.5091872]
[1728859505943,0.00164,62955.0,62954.0,0.52179095]
[1728859506398,0.00264,62955.0,62954.0,0.52179095]
[1728859507084,0.00164,62955.0,62954.0,0.17872094]
[1728859507314,0.00264,62955.0,62954.0,0.21383447]
[1728859507780,0.00364,62955.0,62954.0,0.21683447]
[1728859508010,0.00364,62955.0,62954.0,0.05398847]
[1728859508011,0.00164,62955.0,62954.0,0.05398847]
[1728859508459,0.00264,62955.0,62954.0,0.05698847]
[1728859509190,0.00164,62955.0,62954.0,0.05398847]
[1728859509446,0.161483,62955.0,62954.0,0.01560375]
[1728859509674,0.258783,62955.0,62954.0,0.01860375]
[1728859509892,0.258783,62955.0,62954.0,0.003]
[1728859509893,0.257783,62955.0,62954.0,0.003]
[1728859510404,0.257783,62955.0,62954.0,0.006]
[1728859510854,0.158861,62948.0,62947.0,1e-06]
[1728859511317,0.158861,62948.0,62947.0,0.01253516]
[1728859511543,0.158861,62948.0,62947.0,1e-06]
[1728859512239,0.10594,62955.0,62947.0,0.001001]
[1728859512467,0.317702,62952.0,62947.0,0.001001]
[1728859512692,0.09894,62955.0,62947.0,0.001001]
[1728859512693,0.158861,62948.0,62947.0,0.001001]
[1728859513377,0.160501,62948.0,62947.0,0.001001]
[1728859514279,0.18538471,62948.0,62947.0,0.001001]
[1728859514502,0.02652371,62948.0,62947.0,0.001001]
[1728859514728,0.02652371,62948.0,62947.0,0.159864]
[1728859514954,0.02652371,62948.0,62947.0,0.001001]
[1728859515692,0.18538471,62948.0,62947.0,0.001001]
[1728859519623,0.26338471,62948.0,62947.0,0.001001]
[1728859519842,0.35558471,62948.0,62947.0,0.001001]
[1728859520548,0.35558471,62948.0,62947.0,1e-06]
[1728859520770,0.35758471,62948.0,62947.0,1e-06]
[1728859520992,0.51995442,62948.0,62947.0,1e-06]
[1728859521222,0.333701,62948.0,62947.0,1e-06]
[1728859521964,0.331701,62948.0,62947.0,1e-06]
[1728859522653,0.333701,62948.0,62947.0,1e-06]
[1728859524245,0.35858756,62948.0,62947.0,1e-06]
[1728859524960,0.79292876,62948.0,62947.0,1e-06]
[1728859525191,0.78618128,62948.0,62947.0,1e-06]
[1728859525418,0.78818128,62948.0,62947.0,1e-06]
[1728859525665,0.78618128,62948.0,62947.0,1e-06]
[1728859526348,0.79318128,62948.0,62947.0,1e-06]
[1728859526803,0.79118128,62948.0,62947.0,1e-06]
[1728859527030,0.78418128,62948.0,62947.0,1e-06]
[1728859527256,0.78518128,62948.0,62947.0,1e-06]
[1728859527482,0.96529847,62948.0,62947.0,1e-06]
[1728859527951,0.78518128,62948.0,62947.0,1e-06]
[1728859528234,0.79718128,62948.0,62947.0,1e-06]
[1728859528487,0.78518128,62948.0,62947.0,1e-06]
[1728859528984,0.78518128,62948.0,62931.0,0.23772356]
[1728859528985,0.158901,62932.0,62931.0,0.23772356]
[1728859529493,0.158901,62932.0,62931.0,0.01274015]
[1728859529705,0.317818,62929.0,62924.0,0.23772356]
[1728859529940,0.158915,62927.0,62925.0,0.07145086]
[1728859530431,0.317814,62930.0,62925.0,0.07145086]
[1728859530676,0.158916,62926.0,62925.0,0.07145086]
[1728859531350,0.158916,62926.0,62925.0,0.07245086]
[1728859532088,0.158916,62926.0,62925.0,0.07145086]
[1728859532578,0.317824,62928.0,62925.0,0.07145086]
[1728859532824,0.158915,62927.0,62922.0,0.158925]
[1728859533050,0.317824,62928.0,62922.0,0.158925]
[1728859533051,0.158917,62926.0,62922.0,0.158924]
[1728859533283,0.158917,62926.0,62925.0,0.002]
[1728859533756,0.158917,62926.0,62922.0,0.158924]
[1728859533988,0.158917,62926.0,62922.0,0.159924]
[1728859534206,0.158917,62926.0,62922.0,0.158924]
[1728859534430,0.18380624,62927.0,62923.0,0.158924]
[1728859534697,0.18380624,62927.0,62921.0,0.023]
[1728859534698,0.02489224,62927.0,62925.0,0.002]
[1728859534923,0.001,62928.0,62927.0,0.181914]
[1728859535151,0.02489117,62934.0,62932.0,0.1589]
[1728859535378,0.02489117,62934.0,62929.0,0.317818]
[1728859535379,0.23772356,62931.0,62929.0,0.317818]
[1728859535608,0.02489117,62934.0,62929.0,0.317818]
[1728859535609,0.02489117,62934.0,62932.0,0.16611719]
[1728859536063,0.18378817,62934.0,62932.0,0.16611719]
[1728859537207,0.18378817,62934.0,62932.0,0.16811719]
[1728859537427,0.18378817,62934.0,62933.0,0.01278895]
[1728859537661,0.18378817,62934.0,62933.0,0.0491754]
[1728859538839,0.02489117,62934.0,62933.0,0.0491754]
[1728859539054,0.02489117,62934.0,62933.0,0.2310744]
[1728859539283,0.127401,62942.0,62933.0,0.2310744]
[1728859539284,0.158883,62940.0,62936.0,0.15889]
[1728859539504,0.158881,62940.0,62937.0,0.03040217]
[1728859539749,0.158881,62940.0,62937.0,0.04318684]
[1728859539936,0.317763,62940.0,62937.0,0.04318684]
[1728859540169,0.158886,62938.0,62937.0,0.04318684]
[1728859542012,0.322763,62940.0,62937.0,0.04318684]
[1728859542013,0.005,62940.0,62937.0,0.04318684]
[1728859542241,0.158884,62939.0,62938.0,0.01025733]
[1728859542683,0.158884,62939.0,62938.0,0.02302038]
[1728859543142,0.158884,62939.0,62938.0,0.01025733]
[1728859543626,0.158884,62939.0,62938.0,0.02502038]
[1728859543870,0.158884,62939.0,62938.0,0.01225733]
[1728859544120,0.158884,62939.0,62938.0,0.02502038]
[1728859545985,0.158884,62939.0,62938.0,0.01476305]
[1728859552303,0.158884,62939.0,62938.0,0.002]
[1728859553765,0.158884,62939.0,62938.0,0.01463467]
[1728859554058,0.158884,62939.0,62938.0,0.002]
[1728859554294,0.158884,62939.0,62938.0,0.01463467]
[1728859560588,0.255284,62939.0,62938.0,0.01463467]
[1728859565790,0.158884,62939.0,62938.0,0.01463467]
[1728859566428,0.158884,62939.0,62938.0,0.002]
[1728859566641,0.158884,62939.0,62938.0,0.01464345]
[1728859568858,0.158884,62939.0,62938.0,0.0660768]
[1728859569076,0.158884,62939.0,62938.0,0.01464345]
[1728859569948,0.335484,62939.0,62938.0,0.002]
[1728859570404,0.56777537,62939.0,62938.0,0.002]
[1728859570846,0.49670801,62939.0,62938.0,0.002]
[1728859571053,0.49670801,62939.0,62938.0,0.00282]
[1728859571277,0.65208483,62939.0,62938.0,0.00282]
[1728859571745,0.65208483,62939.0,62938.0,0.00082]
[1728859572015,0.81337409,62939.0,62938.0,0.00082]
[1728859572238,0.91337409,62939.0,62938.0,0.00082]
[1728859572457,0.91437409,62939.0,62938.0,0.00082]
[1728859572688,0.92337409,62939.0,62938.0,0.00082]
[1728859573141,0.60370801,62939.0,62938.0,0.00082]
[1728859573370,0.60170801,62939.0,62938.0,0.00082]
[1728859573857,0.76708429,62939.0,62938.0,0.00082]
[1728859574089,0.76707333,62939.0,62938.0,0.00082]
[1728859574312,0.8711348,62939.0,62938.0,0.00082]
[1728859574541,0.80096445,62939.0,62938.0,0.00082]
[1728859574751,0.64659913,62939.0,62938.0,0.00082]
[1728859574966,0.80100687,62939.0,62938.0,0.00082]
[1728859575180,0.80796884,62939.0,62938.0,0.00082]
[1728859575402,1.04640202,62939.0,62938.0,0.00082]
[1728859575632,0.54567354,62939.0,62938.0,0.00082]
[1728859575877,0.52590792,62939.0,62938.0,0.00082]
[1728859576998,0.42590792,62939.0,62938.0,0.00082]
[1728859577232,0.21949112,62939.0,62938.0,0.00082]
[1728859577441,0.12199112,62939.0,62938.0,0.00082]
[1728859577663,0.12199112,62939.0,62938.0,0.06198385]
[1728859578096,0.04289112,62939.0,62938.0,0.22086985]
[1728859578311,0.03389112,62939.0,62938.0,0.24386985]
[1728859578769,0.03689112,62939.0,62938.0,0.24386985]
[1728859579199,0.03389112,62939.0,62938.0,0.24386985]
[1728859579682,0.02489112,62939.0,62938.0,0.24486985]
[1728859579910,0.02489112,62939.0,62938.0,0.24586985]
[1728859580345,0.02489112,62939.0,62938.0,0.24486985]
[1728859580808,0.02489112,62939.0,62938.0,0.24886985]
[1728859580809,0.02589112,62939.0,62938.0,0.24886985]
[1728859581035,0.02489112,62939.0,62938.0,0.24486985]
[1728859581279,0.31572356,62945.0,62940.0,0.476641]
[1728859581517,0.31572356,62945.0,62944.0,0.16620157]
[1728859581775,0.00164,62947.0,62946.0,0.158866]
[1728859582000,0.00164,62947.0,62946.0,0.34626716]
[1728859582247,0.00164,62947.0,62946.0,0.35571899]
[1728859582481,0.00164,62947.0,62946.0,0.40420005]
[1728859583656,0.00264,62947.0,62946.0,0.35871899]
[1728859584105,0.00164,62947.0,62946.0,0.35571899]
[1728859584339,0.00164,62947.0,62946.0,0.35871899]
[1728859584557,0.00264,62947.0,62946.0,0.35871899]
[1728859584796,0.00264,62947.0,62946.0,0.35571899]
[1728859585033,0.00364,62947.0,62946.0,0.35671899]
[1728859585254,0.00464,62947.0,62946.0,0.01662898]
[1728859585488,0.00464,62947.0,62946.0,0.17449498]
[1728859585489,0.00364,62947.0,62946.0,0.17449498]
[1728859586010,0.00464,62947.0,62946.0,0.17549498]
[1728859586474,0.00164,62947.0,62946.0,0.17149498]
[1728859586954,0.00264,62947.0,62946.0,0.17449498]
[1728859587194,0.00264,62947.0,62946.0,0.17149498]
[1728859588123,0.00264,62947.0,62946.0,0.17449498]
[1728859588335,0.00264,62947.0,62946.0,0.17249498]
[1728859589296,0.00164,62947.0,62946.0,0.17149498]
[1728859589734,0.00164,62947.0,62946.0,0.17549498]
[1728859591416,0.00164,62947.0,62946.0,0.52909768]
[1728859591649,0.00164,62947.0,62946.0,0.52592056]
[1728859593159,0.00164,62947.0,62946.0,0.35971899]
[1728859593374,0.00164,62947.0,62946.0,0.52592056]
[1728859594049,0.00164,62948.0,62946.0,0.63292056]
[1728859594268,0.00164,62948.0,62947.0,0.54629524]
[1728859594491,0.00164,62948.0,62947.0,0.55360689]
[1728859596332,0.00264,62948.0,62947.0,0.55360689]
[1728859596554,0.00164,62948.0,62947.0,0.55360689]
[1728859596797,0.00164,62948.0,62947.0,0.38740532]
[1728859597052,0.00164,62948.0,62947.0,0.39340532]
[1728859597053,0.00264,62948.0,62947.0,0.39340532]
[1728859597280,0.00264,62948.0,62947.0,0.36157532]
[1728859597524,0.00364,62948.0,62947.0,0.36557532]
[1728859597767,0.00264,62948.0,62947.0,0.35957532]
[1728859598030,0.00264,62948.0,62947.0,0.35557532]
[1728859598031,0.00164,62948.0,62947.0,0.35557532]
[1728859598262,0.00264,62948.0,62947.0,0.35957532]
[1728859598798,0.00264,62948.0,62947.0,0.35557532]
[1728859598952,0.00164,62948.0,62947.0,0.35557532]
[1728859599186,0.00364,62948.0,62947.0,0.36557532]
[1728859599425,0.00264,62948.0,62947.0,0.35957532]
[1728859599884,0.00364,62948.0,62947.0,0.36557532]
[1728859611408,0.00364,62948.0,62947.0,0.53177689]
[1728859612343,0.08324,62948.0,62947.0,0.36557532]
[1728859613555,0.17534,62948.0,62947.0,0.36557532]
[1728859613773,0.17534,62948.0,62947.0,0.20435131]
[1728859616777,0.17534,62948.0,62947.0,0.02248831]
[1728859617019,0.20022374,62948.0,62947.0,0.02330831]
[1728859617221,0.20022374,62948.0,62947.0,0.18217131]
[1728859619444,0.35908474,62948.0,62947.0,0.02330831]
[1728859619906,0.35884442,62948.0,62947.0,0.01082]
[1728859620575,0.45827106,62948.0,62947.0,0.01082]
[1728859620831,0.45827106,62948.0,62947.0,0.00482]
[1728859620832,0.45727106,62948.0,62947.0,0.00482]
[1728859621031,0.45927106,62948.0,62947.0,0.00082]
[1728859621261,0.43438732,62948.0,62947.0,0.00082]
[1728859621487,0.43438732,62948.0,62947.0,0.00282]
[1728859621933,0.43438732,62948.0,62947.0,0.00082]
[1728859622152,0.43938732,62948.0,62947.0,0.00082]
[1728859622596,0.44238732,62948.0,62947.0,0.00082]
[1728859623087,0.263863,62947.0,62946.0,0.00082]
[1728859623319,0.95005134,62947.0,62946.0,0.00082]
[1728859623780,0.95013104,62947.0,62946.0,0.00082]
[1728859624230,0.86570009,62947.0,62946.0,0.00082]
[1728859624468,0.68277937,62947.0,62946.0,0.00082]
[1728859624949,0.63537678,62947.0,62946.0,0.00082]
[1728859625179,0.68277937,62947.0,62946.0,0.00082]
[1728859625659,0.64137678,62947.0,62946.0,0.00182]
[1728859626344,0.85014908,62947.0,62946.0,0.00182]
[1728859626565,0.80274649,62947.0,62946.0,0.00182]
[1728859627044,0.96894806,62947.0,62946.0,0.00182]
[1728859629157,0.80274649,62947.0,62946.0,0.00182]
[1728859630509,0.64137678,62947.0,62946.0,0.00182]
[1728859631233,0.61648701,62947.0,62946.0,0.00182]
[1728859632150,0.455263,62947.0,62946.0,0.00182]
[1728859632644,0.61648701,62947.0,62946.0,0.00182]
[1728859632882,0.78268858,62947.0,62946.0,0.00182]
[1728859633353,0.94405829,62947.0,62946.0,0.00182]
[1728859633604,0.94605829,62947.0,62946.0,0.00182]
[1728859634057,0.77785672,62947.0,62946.0,0.00182]
[1728859634278,0.80474625,62947.0,62946.0,0.00182]
[1728859635011,0.80274625,62947.0,62946.0,0.00182]
[1728859635229,0.80474625,62947.0,62946.0,0.00182]
[1728859635929,0.64137654,62947.0,62946.0,0.00182]
[1728859638917,0.63637654,62947.0,62946.0,0.00182]
[1728859639141,0.64137654,62947.0,62946.0,0.00182]
[1728859640891,1.14137654,62947.0,62946.0,0.00182]
[1728859647653,1.11648701,62947.0,62946.0,0.00182]
[1728859648172,1.68178185,62947.0,62946.0,0.00182]
[1728859648440,1.44405829,62947.0,62946.0,0.00182]
[1728859648679,1.44605829,62947.0,62946.0,0.00182]
[1728859648927,1.51700451,62947.0,62946.0,0.00182]
[1728859649157,1.44605829,62947.0,62946.0,0.00182]
[1728859649392,1.43305829,62947.0,62946.0,0.00082]
[1728859649632,1.44705829,62947.0,62946.0,0.00082]
[1728859649883,1.53199988,62947.0,62946.0,0.00082]
[1728859650132,0.60958457,62939.0,62938.0,0.00082]
[1728859650634,0.77280858,62939.0,62938.0,0.00082]
[1728859650884,0.79770093,62939.0,62938.0,0.00082]
[1728859651137,0.84299416,62939.0,62938.0,0.00082]
[1728859651373,0.77280858,62939.0,62938.0,0.00082]
[1728859651625,0.93417829,62939.0,62938.0,0.00082]
[1728859651856,0.93217829,62939.0,62938.0,0.00082]
[1728859652096,1.43217829,62939.0,62938.0,0.00082]
[1728859652565,1.45917829,62939.0,62938.0,0.00082]
[1728859653036,1.44617829,62939.0,62938.0,0.00082]
[1728859653554,1.46017829,62939.0,62938.0,0.00082]
[1728859654571,1.48507095,62939.0,62938.0,0.00082]
[1728859657646,1.48707095,62939.0,62938.0,0.00082]
[1728859657869,1.53438371,62939.0,62938.0,0.00082]
[1728859658357,1.55804009,62939.0,62938.0,0.00082]
[1728859658810,1.54404009,62939.0,62938.0,0.00082]
[1728859659046,1.54204009,62939.0,62938.0,0.00082]
[1728859659546,1.47107095,62939.0,62938.0,0.00082]
[1728859659974,1.48507095,62939.0,62938.0,0.00082]
[1728859660203,1.55604009,62939.0,62938.0,0.00082]
[1728859661146,1.15749967,62939.0,62938.0,0.00082]
[1728859661386,1.20357615,62939.0,62938.0,0.00082]
[1728859662377,1.13260701,62939.0,62938.0,0.00082]
[1728859663064,1.37233057,62939.0,62938.0,0.00082]
[1728859663350,1.16861886,62939.0,62938.0,0.00082]
[1728859663589,1.32998857,62939.0,62938.0,0.00082]
[1728859663831,1.29597672,62939.0,62938.0,0.00082]
[1728859664291,1.32087139,62939.0,62938.0,0.00082]
[1728859664545,1.57087139,62939.0,62938.0,0.00082]
[1728859665702,1.32087139,62939.0,62938.0,0.00082]
[1728859667518,1.57087139,62939.0,62938.0,0.00082]
[1728859668619,1.32087139,62939.0,62938.0,0.00082]
[1728859671405,1.29597672,62939.0,62938.0,0.00082]
[1728859671619,1.54597672,62939.0,62938.0,0.00082]
[1728859674053,1.687915,62939.0,62938.0,0.00082]
[1728859674284,1.57087216,62939.0,62938.0,0.00082]
[1728859680750,1.32087216,62939.0,62938.0,0.00082]
[1728859681439,1.29597672,62939.0,62938.0,0.00082]
[1728859681657,1.54597672,62939.0,62938.0,0.00082]
[1728859684248,1.57087183,62939.0,62938.0,0.00082]
[1728859689514,1.71290808,62939.0,62938.0,0.00082]
[1728859689723,1.57087183,62939.0,62938.0,0.00082]
[1728859689936,1.68284386,62939.0,62938.0,0.00082]
[1728859690380,1.82488011,62939.0,62938.0,0.00082]
[1728859690600,2.03904447,62939.0,62938.0,0.00082]
[1728859690810,1.82488011,62939.0,62938.0,0.00082]
[1728859691266,1.68801297,62939.0,62938.0,0.00082]
[1728859691499,1.87216202,62939.0,62938.0,0.00082]
[1728859693080,1.75818999,62939.0,62938.0,0.00082]
[1728859693316,1.87016202,62939.0,62938.0,0.00082]
[1728859693780,1.87216202,62939.0,62938.0,0.00082]
[1728859694474,1.89705693,62939.0,62938.0,0.00082]
[1728859695741,1.62171519,62939.0,62938.0,0.00082]
[1728859695984,1.44978319,62939.0,62938.0,0.00082]
[1728859696234,1.30750192,62939.0,62938.0,0.00082]
[1728859696492,1.30950192,62939.0,62938.0,0.00082]
[1728859696740,1.05750192,62939.0,62938.0,0.00082]
[1728859696986,1.21887163,62939.0,62938.0,0.00082]
[1728859697231,1.31887163,62939.0,62938.0,0.00082]
[1728859705499,1.10173673,62939.0,62938.0,0.00082]
[1728859706266,0.94051272,62939.0,62938.0,0.00082]
[1728859706510,0.758883,62939.0,62938.0,0.00082]
[1728859706735,0.83800504,62939.0,62938.0,0.00082]
[1728859707017,0.773883,62939.0,62938.0,0.00082]
[1728859707230,0.91988108,62939.0,62938.0,0.00082]
[1728859707460,0.769883,62939.0,62938.0,0.00082]
[1728859707691,0.84097973,62939.0,62938.0,0.00082]
[1728859707931,0.83697973,62939.0,62938.0,0.00082]
[1728859708175,0.83797973,62939.0,62938.0,0.00082]
[1728859708402,0.769883,62939.0,62938.0,0.00082]
[1728859708652,0.766883,62939.0,62938.0,0.00082]
[1728859708883,0.81426211,62939.0,62938.0,0.00082]
[1728859709109,0.82226211,62939.0,62938.0,0.00082]
[1728859709846,0.84715313,62939.0,62938.0,0.00082]
[1728859710311,0.516,62939.0,62938.0,0.0120992]
[1728859710547,0.516,62939.0,62938.0,0.1823731]
[1728859711061,0.508,62939.0,62938.0,0.2069731]
[1728859711293,0.508,62939.0,62938.0,0.31894513]
[1728859711294,0.5,62939.0,62938.0,0.31894513]
[1728859711804,0.5,62939.0,62938.0,0.32094513]
[1728859712046,0.5,62939.0,62938.0,0.31894513]
[1728859712047,0.508,62939.0,62938.0,0.31894513]
[1728859712296,0.509,62939.0,62938.0,0.32094513]
[1728859713538,0.501,62939.0,62938.0,0.32094513]
[1728859713762,0.501,62939.0,62938.0,0.30966593]
[1728859713985,0.502,62939.0,62938.0,0.30966593]
[1728859717322,0.502,62939.0,62938.0,0.0142079]
[1728859717553,0.502,62939.0,62938.0,0.12617993]
[1728859718013,0.502,62939.0,62938.0,0.12417993]
[1728859718014,0.5,62939.0,62938.0,0.12417993]
[1728859718241,0.158879,62941.0,62938.0,0.12417993]
[1728859718471,0.158874,62943.0,62939.0,0.158883]
[1728859718696,0.158874,62943.0,62938.0,0.19762173]
[1728859718697,0.158876,62943.0,62942.0,0.11197203]
[1728859719174,0.317747,62944.0,62938.0,0.00282]
[1728859719175,0.158883,62939.0,62938.0,0.00282]
[1728859719635,0.158883,62939.0,62938.0,0.00082]
[1728859719865,0.158883,62939.0,62938.0,0.00282]
[1728859721098,0.158883,62939.0,62938.0,0.00082]
[1728859721590,0.158882,62940.0,62938.0,0.0299887]
[1728859722757,0.158882,62940.0,62938.0,0.0279887]
[1728859723230,0.158882,62940.0,62938.0,0.0289887]
[1728859724405,0.18377,62940.0,62938.0,0.0289887]
[1728859724649,0.024888,62940.0,62938.0,0.0289887]
[1728859724886,0.024888,62940.0,62939.0,0.3326187]
[1728859726289,0.024888,62940.0,62939.0,0.3336187]
[1728859727971,0.024888,62940.0,62939.0,0.3326187]
[1728859728178,0.025888,62940.0,62939.0,0.3346187]
[1728859728602,0.025888,62940.0,62939.0,0.3576187]
[1728859731230,0.001,62940.0,62939.0,0.3576187]
[1728859731702,0.001,62940.0,62939.0,0.29585503]
[1728859732422,0.001,62940.0,62939.0,0.30716645]
[1728859737735,0.1721,62940.0,62939.0,0.01331142]
[1728859738923,0.330981,62940.0,62939.0,0.01331142]
[1728859739165,0.330981,62940.0,62939.0,0.002]
[1728859739890,0.1721,62940.0,62939.0,0.01328181]
[1728859740111,0.330981,62940.0,62939.0,0.07355629]
[1728859740565,0.329981,62940.0,62939.0,0.07155629]
[1728859740788,0.329981,62940.0,62939.0,0.07255629]
[1728859741264,0.1711,62940.0,62939.0,0.07255629]
[1728859741484,0.1711,62940.0,62939.0,0.01228181]
[1728859742717,0.329981,62940.0,62939.0,0.01310181]
[1728859742952,0.1711,62940.0,62939.0,0.01310181]
[1728859743178,0.1711,62940.0,62939.0,0.07335839]
[1728859743410,0.1711,62940.0,62939.0,0.23224139]
[1728859743641,0.1711,62940.0,62939.0,0.07335839]
[1728859744303,0.195988,62940.0,62939.0,0.07335839]
[1728859747058,0.354869,62940.0,62939.0,0.07335839]
[1728859747326,0.354869,62940.0,62939.0,0.01310181]
[1728859747552,0.354869,62940.0,62939.0,0.00182]
[1728859748659,0.354869,62940.0,62939.0,0.01311965]
[1728859749097,0.354869,62940.0,62939.0,0.00182]
[1728859749100,0.354869,62940.0,62939.0,0.01313178]
[1728859749553,0.354869,62940.0,62939.0,0.00182]
[1728859750978,0.354869,62940.0,62939.0,0.0131295]
[1728859751433,0.329981,62940.0,62939.0,0.0131295]
[1728859751913,0.329981,62940.0,62939.0,0.00182]
[1728859752149,0.329981,62940.0,62939.0,0.0131295]
[1728859754282,0.35486989,62940.0,62939.0,0.0131295]
[1728859755017,0.35486989,62940.0,62939.0,0.04161125]
[1728859755739,0.35586989,62940.0,62939.0,0.04061125]
[1728859755993,0.35686989,62940.0,62939.0,0.04061125]
[1728859756225,0.35686989,62940.0,62939.0,0.19949425]
[1728859756226,0.19698889,62940.0,62939.0,0.19949425]
[1728859756452,0.19898889,62940.0,62939.0,0.04061125]
[1728859757370,0.19898889,62940.0,62939.0,0.19949425]
[1728859757593,0.35786989,62940.0,62939.0,0.04061125]
[1728859757825,0.35586989,62940.0,62939.0,0.04061125]
[1728859758522,0.35486989,62940.0,62939.0,0.04061125]
[1728859758748,0.19598889,62940.0,62939.0,0.04061125]
[1728859759236,0.19698889,62940.0,62939.0,0.04261125]
[1728859759513,0.35586989,62940.0,62939.0,0.04261125]
[1728859759751,0.35486989,62940.0,62939.0,0.04061125]
[1728859759991,0.35486989,62940.0,62939.0,0.04261125]
[1728859760702,0.19598889,62940.0,62939.0,0.04261125]
[1728859760934,0.19598889,62940.0,62939.0,0.20149425]
[1728859761403,0.329981,62940.0,62939.0,0.04261125]
[1728859761644,0.329981,62940.0,62939.0,0.04061125]
[1728859761866,0.329981,62940.0,62939.0,0.04261125]
[1728859762838,0.329981,62940.0,62939.0,0.0141295]
[1728859764241,0.329981,62940.0,62939.0,0.0121295]
[1728859764489,0.3548696,62940.0,62939.0,0.0121295]
[1728859765189,0.3548696,62940.0,62939.0,0.0141295]
[1728859765419,0.3548696,62940.0,62939.0,0.0121295]
[1728859765678,0.3548696,62940.0,62939.0,0.07428985]
[1728859767044,0.3548696,62940.0,62939.0,0.0141295]
[1728859769069,0.3548696,62940.0,62939.0,0.0121295]
[1728859769308,0.3548696,62940.0,62939.0,0.0131295]
[1728859769540,0.3548696,62940.0,62934.0,0.40260053]
[1728859769781,0.3548696,62940.0,62939.0,0.01218792]
[1728859770014,0.3548696,62940.0,62936.0,0.158889]
[1728859770252,0.3548696,62940.0,62939.0,0.01218792]
[1728859770479,0.3548696,62940.0,62936.0,0.158889]
[1728859770712,0.3548696,62940.0,62939.0,0.01318792]
[1728859770961,0.3548696,62940.0,62939.0,0.001]
[1728859771217,0.3548696,62940.0,62939.0,0.01318792]
[1728859771461,0.329981,62940.0,62939.0,0.001]
[1728859771692,0.329981,62940.0,62939.0,0.01318792]
[1728859773858,0.1711,62940.0,62939.0,0.01318792]
[1728859774559,0.19598836,62940.0,62939.0,0.17207092]
[1728859774809,0.19598836,62940.0,62939.0,0.01318792]
[1728859775096,0.19598836,62940.0,62939.0,0.17207092]
[1728859775335,0.19598836,62940.0,62939.0,0.01318792]
[1728859775795,0.19598836,62940.0,62939.0,0.17207092]
[1728859777440,0.19598836,62940.0,62939.0,0.01318792]
[1728859777441,0.19762836,62940.0,62939.0,0.01318792]
[1728859781513,0.17274,62940.0,62939.0,0.01318792]
[1728859783586,0.331621,62940.0,62939.0,0.01318792]
[1728859784502,0.3565095,62940.0,62939.0,0.01318792]
[1728859786406,0.3565095,62940.0,62939.0,0.001]
[1728859786893,0.3565095,62940.0,62939.0,0.01317664]
[1728859787114,0.3565095,62940.0,62939.0,0.001]
[1728859787335,0.3565095,62940.0,62939.0,0.01317664]
[1728859788342,0.80636899,62940.0,62939.0,0.01317664]
[1728859788575,0.80636899,62940.0,62939.0,0.001]
[1728859788837,0.330394,62935.0,62934.0,0.00082]
[1728859789079,0.71556207,62935.0,62934.0,0.00082]
[1728859789320,0.98193178,62935.0,62934.0,0.00082]
[1728859789807,0.98393178,62935.0,62934.0,0.00082]
[1728859790042,0.98393178,62935.0,62925.0,0.00082]
[1728859790043,0.1715,62932.0,62925.0,0.00082]
[1728859790276,0.44238803,62926.0,62925.0,0.00082]
[1728859790791,0.61245991,62926.0,62925.0,0.00082]